[Event "Betsys MČR v online bleskovém šachu 2021"]
[Site "Chess.com"]
[Date "2021.04.17"]
[Round "8"]
[White "terezkai"]
[Black "sharpi5135"]
[Result "1-0"]
[WhiteElo "770"]
[BlackElo "736"]
[TimeControl "180+1"]
[EndTime "10:21:14 PDT"]
[Termination "Uživatel terezkai zvítězil na čas"]

1. e4 {[%clk 0:03:00.9]} 1... e5 {[%clk 0:02:57.6]} 2. Bc4 {[%clk 0:02:59.2]}
2... c6 {[%clk 0:02:55.3]} 3. d4 {[%clk 0:02:47.3]} 3... d5 {[%clk 0:02:49.7]}
4. dxe5 {[%clk 0:02:43]} 4... dxc4 {[%clk 0:02:41]} 5. Bd2 {[%clk 0:02:30.8]}
5... Be7 {[%clk 0:02:28.6]} 6. Nf3 {[%clk 0:02:28.2]} 6... Bg4 {[%clk
0:02:24.4]} 7. h3 {[%clk 0:02:26.2]} 7... Bxf3 {[%clk 0:02:13.3]} 8. Qxf3 {[%clk
0:02:25.7]} 8... f6 {[%clk 0:02:10.9]} 9. Nc3 {[%clk 0:02:24.4]} 9... fxe5
{[%clk 0:02:03.5]} 10. O-O {[%clk 0:02:13.1]} 10... Nf6 {[%clk 0:02:01]} 11. Qg3
{[%clk 0:01:59.1]} 11... Nh5 {[%clk 0:01:55]} 12. Qxe5 {[%clk 0:01:53.4]} 12...
Nd7 {[%clk 0:01:44.7]} 13. Qxh5+ {[%clk 0:01:50.6]} 13... g6 {[%clk 0:01:39.3]}
14. Qg4 {[%clk 0:01:18]} 14... Qc7 {[%clk 0:01:16]} 15. Bf4 {[%clk 0:01:07.8]}
15... Ne5 {[%clk 0:01:12.4]} 16. Nb5 {[%clk 0:00:54.8]} 16... cxb5 {[%clk
0:01:03.9]} 17. Bxe5 {[%clk 0:00:52]} 17... Qxe5 {[%clk 0:00:45.2]} 18. Rae1
{[%clk 0:00:46.3]} 18... Rd8 {[%clk 0:00:26.4]} 19. Rd1 {[%clk 0:00:42.1]} 19...
Kf7 {[%clk 0:00:19.5]} 20. Rxd8 {[%clk 0:00:37.1]} 20... Rxd8 {[%clk 0:00:18]}
21. f4 {[%clk 0:00:19.5]} 21... Qxe4 {[%clk 0:00:15.8]} 22. Qg3 {[%clk
0:00:16.3]} 22... Qxc2 {[%clk 0:00:10.2]} 23. Rf2 {[%clk 0:00:14.1]} 23... Qb1+
{[%clk 0:00:06.7]} 24. Rf1 {[%clk 0:00:12.4]} 24... Qxa2 {[%clk 0:00:06]} 25.
Rf2 {[%clk 0:00:11]} 25... Qb1+ {[%clk 0:00:02.8]} 26. Rf1 {[%clk 0:00:09.9]}
26... Qd3 {[%clk 0:00:02.6]} 27. Rf2 {[%clk 0:00:09.2]} 27... Qd1+ {[%clk
0:00:01.5]} 28. Rf1 {[%clk 0:00:08.6]} 28... Qd3 {[%clk 0:00:01.1]} 29. Rf2
{[%clk 0:00:08.3]} 1-0

[Event "Betsys MČR v online bleskovém šachu 2021"]
[Site "Chess.com"]
[Date "2021.04.17"]
[Round "8"]
[White "maelic"]
[Black "misa2009"]
[Result "1-0"]
[WhiteElo "1781"]
[BlackElo "1514"]
[TimeControl "180+1"]
[EndTime "10:21:15 PDT"]
[Termination "Uživatel maelic zvítězil po vzdání soupeře"]

1. d4 {[%clk 0:03:00.9]} 1... Nf6 {[%clk 0:02:59.6]} 2. Bf4 {[%clk 0:03:00.7]}
2... e6 {[%clk 0:02:59.1]} 3. e3 {[%clk 0:03:00.8]} 3... d5 {[%clk 0:02:59.1]}
4. c4 {[%clk 0:03:00.5]} 4... c5 {[%clk 0:02:55.1]} 5. dxc5 {[%clk 0:02:54.5]}
5... Bxc5 {[%clk 0:02:54.5]} 6. Nf3 {[%clk 0:02:53.6]} 6... Nc6 {[%clk
0:02:53.5]} 7. Nc3 {[%clk 0:02:52.1]} 7... Bb4 {[%clk 0:02:51.9]} 8. Qb3 {[%clk
0:02:51.4]} 8... Qe7 {[%clk 0:02:39.1]} 9. Be2 {[%clk 0:02:45.2]} 9... Ne4
{[%clk 0:02:32.6]} 10. cxd5 {[%clk 0:02:26.2]} 10... exd5 {[%clk 0:02:20]} 11.
O-O {[%clk 0:02:24.9]} 11... O-O {[%clk 0:02:06.8]} 12. Nxd5 {[%clk 0:02:16.5]}
12... Qe6 {[%clk 0:01:45.1]} 13. Nc7 {[%clk 0:01:29.3]} 13... Qxb3 {[%clk
0:01:43.8]} 14. axb3 {[%clk 0:01:30.2]} 14... Rb8 {[%clk 0:01:40.9]} 15. Bb5
{[%clk 0:01:14.8]} 15... Bf5 {[%clk 0:01:18.6]} 16. Bxc6 {[%clk 0:01:08.7]}
16... bxc6 {[%clk 0:01:17]} 17. Rxa7 {[%clk 0:00:59.4]} 17... Bc5 {[%clk
0:01:00.4]} 18. Ra6 {[%clk 0:00:52.7]} 18... Rxb3 {[%clk 0:00:50.3]} 19. Rxc6
{[%clk 0:00:52.3]} 19... Rxb2 {[%clk 0:00:48.6]} 20. Ng5 {[%clk 0:00:46.8]}
20... Nxg5 {[%clk 0:00:47.2]} 21. Rxc5 {[%clk 0:00:41.8]} 21... Ne6 {[%clk
0:00:35.4]} 22. Rxf5 {[%clk 0:00:39.3]} 22... Nxf4 {[%clk 0:00:35.4]} 23. Rxf4
{[%clk 0:00:37.8]} 23... Rc2 {[%clk 0:00:36.3]} 24. Nd5 {[%clk 0:00:37]} 24...
Re8 {[%clk 0:00:31.7]} 25. Rd4 {[%clk 0:00:32.3]} 25... Rd8 {[%clk 0:00:28.3]}
26. Nf6+ {[%clk 0:00:29.9]} 26... gxf6 {[%clk 0:00:26.8]} 27. Rxd8+ {[%clk
0:00:30]} 27... Kg7 {[%clk 0:00:27.7]} 28. Rd4 {[%clk 0:00:30.1]} 28... f5
{[%clk 0:00:25.7]} 29. Rfd1 {[%clk 0:00:30.2]} 29... f6 {[%clk 0:00:23.5]} 30.
Rd7+ {[%clk 0:00:30]} 30... Kg6 {[%clk 0:00:23.6]} 31. h3 {[%clk 0:00:29.9]}
31... h5 {[%clk 0:00:22]} 32. g3 {[%clk 0:00:30]} 32... Kg5 {[%clk 0:00:21.5]}
33. h4+ {[%clk 0:00:30.4]} 33... Kg4 {[%clk 0:00:21.2]} 34. Kg2 {[%clk
0:00:28.5]} 34... f4 {[%clk 0:00:18.2]} 35. R7d4 {[%clk 0:00:25.9]} 35... Kf5
{[%clk 0:00:15.5]} 36. Rxf4+ {[%clk 0:00:26]} 36... Ke5 {[%clk 0:00:15]} 37.
Rdd4 {[%clk 0:00:21.7]} 37... Ke6 {[%clk 0:00:14.3]} 38. Rde4+ {[%clk
0:00:21.1]} 38... Kf7 {[%clk 0:00:14.1]} 39. Rf5 {[%clk 0:00:21.4]} 1-0

[Event "Betsys MČR v online bleskovém šachu 2021"]
[Site "Chess.com"]
[Date "2021.04.17"]
[Round "8"]
[White "VildaSt"]
[Black "misacz"]
[Result "1-0"]
[WhiteElo "1303"]
[BlackElo "1078"]
[TimeControl "180+1"]
[EndTime "10:21:16 PDT"]
[Termination "Uživatel VildaSt zvítězil po vzdání soupeře"]

1. e4 {[%clk 0:03:00.9]} 1... e6 {[%clk 0:02:58.5]} 2. d4 {[%clk 0:02:57.5]}
2... d5 {[%clk 0:02:58.3]} 3. exd5 {[%clk 0:02:57.1]} 3... exd5 {[%clk
0:02:58.2]} 4. Nf3 {[%clk 0:02:56.2]} 4... Nf6 {[%clk 0:02:57.4]} 5. c4 {[%clk
0:02:56.1]} 5... c5 {[%clk 0:02:56.2]} 6. Nc3 {[%clk 0:02:48]} 6... Nc6 {[%clk
0:02:55.3]} 7. dxc5 {[%clk 0:02:43.9]} 7... Bxc5 {[%clk 0:02:54.2]} 8. Bg5
{[%clk 0:02:37.4]} 8... d4 {[%clk 0:02:52.5]} 9. Na4 {[%clk 0:02:32.3]} 9...
Bb4+ {[%clk 0:02:50.3]} 10. Nd2 {[%clk 0:02:27.5]} 10... Bxd2+ {[%clk
0:02:40.8]} 11. Qxd2 {[%clk 0:02:26]} 11... h6 {[%clk 0:02:36.9]} 12. Bxf6
{[%clk 0:02:22.1]} 12... Qxf6 {[%clk 0:02:35.8]} 13. Bd3 {[%clk 0:02:20.2]}
13... Bf5 {[%clk 0:02:31.9]} 14. Bxf5 {[%clk 0:02:18.7]} 14... Qxf5 {[%clk
0:02:31.5]} 15. O-O {[%clk 0:02:18.5]} 15... O-O {[%clk 0:02:30.6]} 16. b3
{[%clk 0:02:13.1]} 16... Rfd8 {[%clk 0:02:23.4]} 17. Nb2 {[%clk 0:02:12.4]}
17... Rd6 {[%clk 0:02:12.2]} 18. Qd3 {[%clk 0:02:11.3]} 18... Qxd3 {[%clk
0:02:11.2]} 19. Nxd3 {[%clk 0:02:11.3]} 19... Rad8 {[%clk 0:02:09.5]} 20. Rad1
{[%clk 0:02:09.9]} 20... Re8 {[%clk 0:01:55.6]} 21. Rfe1 {[%clk 0:02:05.2]}
21... Rxe1+ {[%clk 0:01:55.3]} 22. Rxe1 {[%clk 0:02:04.5]} 22... Re6 {[%clk
0:01:55.2]} 23. Rxe6 {[%clk 0:02:01]} 23... fxe6 {[%clk 0:01:56.1]} 24. Kf1
{[%clk 0:02:00.6]} 24... Kf7 {[%clk 0:01:54.1]} 25. Ke2 {[%clk 0:02:00.8]} 25...
e5 {[%clk 0:01:52.7]} 26. Kf3 {[%clk 0:01:59.9]} 26... Kf6 {[%clk 0:01:52.7]}
27. Ke4 {[%clk 0:01:59.6]} 27... Ne7 {[%clk 0:01:35.6]} 28. Nxe5 {[%clk
0:01:57.4]} 28... Nf5 {[%clk 0:01:31.8]} 29. g4 {[%clk 0:01:51.4]} 29... Nh4
{[%clk 0:01:31.2]} 30. Kxd4 {[%clk 0:01:47.9]} 30... Ng2 {[%clk 0:01:28.6]} 31.
Nd3 {[%clk 0:01:39.4]} 31... Nh4 {[%clk 0:01:23.4]} 32. Ke4 {[%clk 0:01:37.4]}
32... Ng6 {[%clk 0:01:21.4]} 33. h3 {[%clk 0:01:33.1]} 33... Nh4 {[%clk
0:01:14.1]} 34. f3 {[%clk 0:01:30.9]} 34... Ng2 {[%clk 0:01:12.3]} 35. Nc5
{[%clk 0:01:27.9]} 35... b6 {[%clk 0:01:11.3]} 36. Na6 {[%clk 0:01:19.8]} 36...
Ne1 {[%clk 0:01:06.8]} 37. Nb4 {[%clk 0:01:17.8]} 37... Ke6 {[%clk 0:01:04]} 38.
Ke3 {[%clk 0:01:17]} 38... Ke5 {[%clk 0:00:55.9]} 39. Nc6+ {[%clk 0:01:15.8]}
39... Kd6 {[%clk 0:00:55.1]} 40. Nxa7 {[%clk 0:01:15.7]} 40... Ke5 {[%clk
0:00:54.7]} 41. Nc8 {[%clk 0:01:14.4]} 41... Nc2+ {[%clk 0:00:51.2]} 42. Ke2
{[%clk 0:01:07.2]} 42... Kd4 {[%clk 0:00:49]} 43. a4 {[%clk 0:01:04.6]} 43...
Nb4 {[%clk 0:00:41.8]} 44. Nxb6 {[%clk 0:01:03.9]} 44... Nc6 {[%clk 0:00:39.2]}
45. Nd5 {[%clk 0:00:57.8]} 45... Ne5 {[%clk 0:00:36.9]} 46. Nf4 {[%clk
0:00:55.9]} 46... Kc3 {[%clk 0:00:33.6]} 47. Ne6 {[%clk 0:00:54.6]} 47... Kxb3
{[%clk 0:00:33]} 48. a5 {[%clk 0:00:47.7]} 48... Ka4 {[%clk 0:00:33.9]} 49. a6
{[%clk 0:00:47.7]} 49... Nc6 {[%clk 0:00:33.6]} 50. Kd3 {[%clk 0:00:40.5]} 50...
Ka5 {[%clk 0:00:30.7]} 51. Nd4 {[%clk 0:00:40.4]} 51... Kxa6 {[%clk 0:00:30.9]}
52. Nxc6 {[%clk 0:00:40]} 52... Kb6 {[%clk 0:00:30.7]} 53. Ne5 {[%clk 0:00:40]}
1-0

[Event "Betsys MČR v online bleskovém šachu 2021"]
[Site "Chess.com"]
[Date "2021.04.17"]
[Round "8"]
[White "MatyldaCZ"]
[Black "marosino"]
[Result "1-0"]
[WhiteElo "1419"]
[BlackElo "1559"]
[TimeControl "180+1"]
[EndTime "10:21:18 PDT"]
[Termination "Uživatel MatyldaCZ zvítězil po vzdání soupeře"]

1. e4 {[%clk 0:03:00.9]} 1... d5 {[%clk 0:02:59.4]} 2. Nf3 {[%clk 0:03:01.3]}
2... dxe4 {[%clk 0:02:58.8]} 3. Ng5 {[%clk 0:03:01.8]} 3... Bf5 {[%clk
0:02:50.7]} 4. Nc3 {[%clk 0:03:01.4]} 4... Nc6 {[%clk 0:02:46.6]} 5. Ngxe4
{[%clk 0:03:00.6]} 5... Bxe4 {[%clk 0:02:46.5]} 6. Nxe4 {[%clk 0:03:00.4]} 6...
Qd5 {[%clk 0:02:44.1]} 7. d3 {[%clk 0:02:59]} 7... O-O-O {[%clk 0:02:43.2]} 8.
Be3 {[%clk 0:02:55.5]} 8... f5 {[%clk 0:02:41]} 9. Nc3 {[%clk 0:02:54.2]} 9...
Qd6 {[%clk 0:02:35.4]} 10. Qf3 {[%clk 0:02:51]} 10... g6 {[%clk 0:02:30.1]} 11.
g3 {[%clk 0:02:46.1]} 11... Bg7 {[%clk 0:02:28.7]} 12. Bg2 {[%clk 0:02:44.8]}
12... e5 {[%clk 0:02:20.6]} 13. Qe2 {[%clk 0:02:42.5]} 13... Nd4 {[%clk
0:02:13.7]} 14. Bxd4 {[%clk 0:02:41.1]} 14... exd4 {[%clk 0:02:13.6]} 15. Nb5
{[%clk 0:02:33.8]} 15... Qd7 {[%clk 0:02:05.9]} 16. a4 {[%clk 0:02:25.9]} 16...
Re8 {[%clk 0:02:04.8]} 17. Be4 {[%clk 0:02:21.7]} 17... fxe4 {[%clk 0:02:04.1]}
18. O-O {[%clk 0:02:20.8]} 18... exd3 {[%clk 0:02:03.3]} 19. Qxd3 {[%clk
0:02:20.6]} 19... Nh6 {[%clk 0:01:56.6]} 20. Nxa7+ {[%clk 0:02:19.3]} 20... Kb8
{[%clk 0:01:56.3]} 21. Nb5 {[%clk 0:02:19.5]} 21... Nf5 {[%clk 0:01:54]} 22. c3
{[%clk 0:02:18.5]} 22... Rd8 {[%clk 0:01:45.6]} 23. cxd4 {[%clk 0:02:17.1]}
23... Nxd4 {[%clk 0:01:43.9]} 24. Rad1 {[%clk 0:02:12.9]} 24... Rhf8 {[%clk
0:01:23.8]} 25. Qc4 {[%clk 0:01:41.5]} 25... Nf3+ {[%clk 0:01:17]} 26. Kg2
{[%clk 0:01:36.7]} 26... Qc6 {[%clk 0:01:11]} 27. Rxd8+ {[%clk 0:01:32.7]} 27...
Rxd8 {[%clk 0:01:08.1]} 28. Qxc6 {[%clk 0:01:24.9]} 28... bxc6 {[%clk
0:01:07.6]} 29. Kxf3 {[%clk 0:01:21.7]} 29... cxb5 {[%clk 0:01:07.5]} 30. axb5
{[%clk 0:01:22.1]} 30... Bxb2 {[%clk 0:01:00.4]} 31. Rb1 {[%clk 0:01:21.9]}
31... Bd4 {[%clk 0:00:58.1]} 32. Ke2 {[%clk 0:01:16.4]} 32... Rf8 {[%clk
0:00:55.5]} 33. f4 {[%clk 0:01:15.6]} 33... Bb6 {[%clk 0:00:54.7]} 34. Kf3
{[%clk 0:01:13.3]} 34... g5 {[%clk 0:00:53.6]} 35. Rb4 {[%clk 0:01:10.1]} 35...
gxf4 {[%clk 0:00:53.3]} 36. gxf4 {[%clk 0:01:10.5]} 36... Kb7 {[%clk 0:00:51.6]}
37. Kg4 {[%clk 0:01:10.6]} 37... Bc5 {[%clk 0:00:51.5]} 38. Rc4 {[%clk
0:01:09.3]} 38... Bd6 {[%clk 0:00:51.3]} 39. f5 {[%clk 0:01:05.7]} 39... Kb6
{[%clk 0:00:51.1]} 40. Kg5 {[%clk 0:01:01.6]} 40... Kxb5 {[%clk 0:00:50.6]} 41.
Rd4 {[%clk 0:00:59.9]} 41... Be5 {[%clk 0:00:46.6]} 42. Rd5+ {[%clk 0:00:58.9]}
42... c5 {[%clk 0:00:42.6]} 43. Rxe5 {[%clk 0:00:58.8]} 43... Kb4 {[%clk
0:00:42.6]} 44. f6 {[%clk 0:00:58.6]} 44... c4 {[%clk 0:00:42.6]} 45. Rf5 {[%clk
0:00:55.4]} 45... c3 {[%clk 0:00:41.9]} 46. f7 {[%clk 0:00:56]} 46... c2 {[%clk
0:00:40]} 47. Rf1 {[%clk 0:00:56.6]} 47... Kb3 {[%clk 0:00:39.7]} 48. Kh6 {[%clk
0:00:56.2]} 48... Kb2 {[%clk 0:00:39.4]} 49. Kg7 {[%clk 0:00:56.7]} 49... Rxf7+
{[%clk 0:00:25]} 50. Kxf7 {[%clk 0:00:56.4]} 50... c1=Q {[%clk 0:00:24.5]} 51.
Rxc1 {[%clk 0:00:56.3]} 51... Kxc1 {[%clk 0:00:24.7]} 52. Kg7 {[%clk 0:00:56.9]}
52... Kd2 {[%clk 0:00:25.1]} 53. Kxh7 {[%clk 0:00:56.4]} 53... Ke3 {[%clk
0:00:25.5]} 54. h4 {[%clk 0:00:57]} 54... Kf4 {[%clk 0:00:25.9]} 55. h5 {[%clk
0:00:57.6]} 55... Kf5 {[%clk 0:00:26.1]} 56. h6 {[%clk 0:00:58]} 56... Kf6
{[%clk 0:00:26.2]} 57. Kg8 {[%clk 0:00:57.9]} 57... Kg6 {[%clk 0:00:25.9]} 58.
h7 {[%clk 0:00:58.4]} 58... Kh6 {[%clk 0:00:25.7]} 59. h8=Q+ {[%clk 0:00:58.6]}
1-0

[Event "Betsys MČR v online bleskovém šachu 2021"]
[Site "Chess.com"]
[Date "2021.04.17"]
[Round "8"]
[White "Jindrich4321"]
[Black "psvoboda72"]
[Result "1-0"]
[WhiteElo "1937"]
[BlackElo "1715"]
[TimeControl "180+1"]
[EndTime "10:21:19 PDT"]
[Termination "Uživatel Jindrich4321 zvítězil matem"]

1. d4 {[%clk 0:03:00.9]} 1... Nf6 {[%clk 0:02:57.3]} 2. c4 {[%clk 0:02:59.9]}
2... g6 {[%clk 0:02:57.8]} 3. Nc3 {[%clk 0:03:00.1]} 3... Bg7 {[%clk 0:02:58.1]}
4. e4 {[%clk 0:03:00.5]} 4... d6 {[%clk 0:02:58]} 5. Be2 {[%clk 0:03:00.7]} 5...
O-O {[%clk 0:02:56.1]} 6. Bg5 {[%clk 0:03:00.9]} 6... Nbd7 {[%clk 0:02:47.8]} 7.
f4 {[%clk 0:03:00.4]} 7... h6 {[%clk 0:02:43.5]} 8. Bh4 {[%clk 0:02:59.3]} 8...
c6 {[%clk 0:02:41.3]} 9. Nf3 {[%clk 0:02:57.6]} 9... Qc7 {[%clk 0:02:32.4]} 10.
O-O {[%clk 0:02:48.1]} 10... e5 {[%clk 0:02:32.2]} 11. fxe5 {[%clk 0:02:47.1]}
11... dxe5 {[%clk 0:02:30.2]} 12. Nxe5 {[%clk 0:02:32.3]} 12... Nxe5 {[%clk
0:02:24]} 13. Bxf6 {[%clk 0:02:31.7]} 13... Bxf6 {[%clk 0:01:57.4]} 14. Rxf6
{[%clk 0:02:29.9]} 14... Nd7 {[%clk 0:01:48.9]} 15. Rf2 {[%clk 0:02:28.9]} 15...
Nb6 {[%clk 0:01:41.2]} 16. Qd2 {[%clk 0:02:26.2]} 16... Kg7 {[%clk 0:01:38.9]}
17. Raf1 {[%clk 0:02:20.9]} 17... f5 {[%clk 0:01:36.9]} 18. c5 {[%clk
0:02:06.5]} 18... Nd7 {[%clk 0:01:16.6]} 19. exf5 {[%clk 0:02:06.1]} 19... Nf6
{[%clk 0:01:11.4]} 20. fxg6 {[%clk 0:01:39.3]} 20... Be6 {[%clk 0:01:10.1]} 21.
Qe3 {[%clk 0:01:33.6]} 21... Rae8 {[%clk 0:01:06.7]} 22. Qd2 {[%clk 0:01:24.1]}
22... Bd5 {[%clk 0:01:04.7]} 23. Nxd5 {[%clk 0:01:13.9]} 23... cxd5 {[%clk
0:01:03.8]} 24. Bf3 {[%clk 0:01:04]} 24... Qd7 {[%clk 0:01:01]} 25. Qd3 {[%clk
0:00:59.8]} 25... Ne4 {[%clk 0:00:59.6]} 26. Bxe4 {[%clk 0:00:57.7]} 26... dxe4
{[%clk 0:00:58.1]} 27. Qg3 {[%clk 0:00:51.8]} 27... Rxf2 {[%clk 0:00:50.2]} 28.
Rxf2 {[%clk 0:00:47.8]} 28... Qxd4 {[%clk 0:00:49.6]} 29. Qc7+ {[%clk
0:00:35.5]} 29... Kxg6 {[%clk 0:00:38.8]} 30. Qf7+ {[%clk 0:00:34.7]} 30... Kg5
{[%clk 0:00:34.2]} 31. Qxe8 {[%clk 0:00:31.5]} 31... Qd1+ {[%clk 0:00:31.9]} 32.
Rf1 {[%clk 0:00:30.1]} 32... Qd4+ {[%clk 0:00:31.3]} 33. Kh1 {[%clk 0:00:28.9]}
33... Qxc5 {[%clk 0:00:29.2]} 34. Qxe4 {[%clk 0:00:24.9]} 34... Qb5 {[%clk
0:00:19.7]} 35. Qf4+ {[%clk 0:00:23.8]} 35... Kg6 {[%clk 0:00:18]} 36. Qf7+
{[%clk 0:00:22.8]} 36... Kg5 {[%clk 0:00:17.1]} 37. Qg7+ {[%clk 0:00:20.4]}
37... Kh5 {[%clk 0:00:16]} 38. Qf7+ {[%clk 0:00:17.2]} 38... Kg5 {[%clk
0:00:15.6]} 39. h3 {[%clk 0:00:17.2]} 39... h5 {[%clk 0:00:13.4]} 40. Qf6#
{[%clk 0:00:15.8]} 1-0

[Event "Betsys MČR v online bleskovém šachu 2021"]
[Site "Chess.com"]
[Date "2021.04.17"]
[Round "8"]
[White "DONSANMIGUEL"]
[Black "povrlak60"]
[Result "1/2-1/2"]
[WhiteElo "1810"]
[BlackElo "1621"]
[TimeControl "180+1"]
[EndTime "10:21:19 PDT"]
[Termination "Remíza opakováním pozice"]

1. Nf3 {[%clk 0:03:00.9]} 1... Nf6 {[%clk 0:02:54.6]} 2. a4 {[%clk 0:03:01.8]}
2... g6 {[%clk 0:02:52.9]} 3. d3 {[%clk 0:03:00.3]} 3... Bg7 {[%clk 0:02:52.9]}
4. Nbd2 {[%clk 0:02:58.6]} 4... O-O {[%clk 0:02:52.1]} 5. e3 {[%clk 0:02:59.5]}
5... d5 {[%clk 0:02:51.2]} 6. Be2 {[%clk 0:03:00.4]} 6... c5 {[%clk 0:02:50.8]}
7. Nf1 {[%clk 0:03:00.2]} 7... Nc6 {[%clk 0:02:50.5]} 8. Ng3 {[%clk 0:03:00.2]}
8... Bg4 {[%clk 0:02:49.4]} 9. h3 {[%clk 0:03:00.4]} 9... Bxf3 {[%clk
0:02:48.3]} 10. gxf3 {[%clk 0:03:00]} 10... e5 {[%clk 0:02:45.6]} 11. e4 {[%clk
0:02:47.4]} 11... Qa5+ {[%clk 0:02:31.4]} 12. Bd2 {[%clk 0:02:45.2]} 12... Qb6
{[%clk 0:02:30.8]} 13. Bc3 {[%clk 0:02:38.7]} 13... d4 {[%clk 0:02:26.8]} 14. a5
{[%clk 0:02:34.8]} 14... Qb5 {[%clk 0:02:22.7]} 15. Bd2 {[%clk 0:02:33.8]} 15...
Rab8 {[%clk 0:02:05.8]} 16. b3 {[%clk 0:02:31.9]} 16... Nb4 {[%clk 0:02:04.7]}
17. h4 {[%clk 0:02:20.8]} 17... h5 {[%clk 0:02:01.8]} 18. O-O {[%clk 0:02:14.1]}
18... b6 {[%clk 0:02:01]} 19. axb6 {[%clk 0:02:12]} 19... axb6 {[%clk
0:02:00.7]} 20. Kg2 {[%clk 0:02:09.7]} 20... Ra8 {[%clk 0:01:59.2]} 21. Bxb4
{[%clk 0:02:04.9]} 21... Qxb4 {[%clk 0:01:58.1]} 22. Qc1 {[%clk 0:01:57.8]}
22... Qc3 {[%clk 0:01:55.3]} 23. Rxa8 {[%clk 0:01:48.5]} 23... Rxa8 {[%clk
0:01:53.2]} 24. Bd1 {[%clk 0:01:48.7]} 24... Ra1 {[%clk 0:01:47]} 25. Qg5 {[%clk
0:01:40.6]} 25... Kh7 {[%clk 0:01:31.7]} 26. f4 {[%clk 0:01:13.9]} 26... exf4
{[%clk 0:01:26.1]} 27. Qxf4 {[%clk 0:01:12.6]} 27... Ra7 {[%clk 0:01:14]} 28. e5
{[%clk 0:01:09.4]} 28... Nd5 {[%clk 0:01:02.5]} 29. Qg5 {[%clk 0:01:02.9]} 29...
Bh6 {[%clk 0:00:58.4]} 30. Qd8 {[%clk 0:01:00.4]} 30... Nf4+ {[%clk 0:00:49.2]}
31. Kh2 {[%clk 0:00:55.7]} 31... Qd2 {[%clk 0:00:45.8]} 32. Qxb6 {[%clk
0:00:47.5]} 32... Ra1 {[%clk 0:00:42.5]} 33. Ne4 {[%clk 0:00:43]} 33... Qa5
{[%clk 0:00:29.8]} 34. Nf6+ {[%clk 0:00:39.6]} 34... Kg7 {[%clk 0:00:28.6]} 35.
Qb8 {[%clk 0:00:35.1]} 35... Qa8 {[%clk 0:00:20.5]} 36. Ne8+ {[%clk 0:00:19.4]}
36... Kh7 {[%clk 0:00:17.6]} 37. Nf6+ {[%clk 0:00:17.4]} 37... Kg7 {[%clk
0:00:16.9]} 38. Ne8+ {[%clk 0:00:17.3]} 38... Kh7 {[%clk 0:00:16.2]} 39. Nf6+
{[%clk 0:00:12.4]} 39... Kg7 {[%clk 0:00:15.7]} 1/2-1/2

[Event "Betsys MČR v online bleskovém šachu 2021"]
[Site "Chess.com"]
[Date "2021.04.17"]
[Round "8"]
[White "masodj"]
[Black "alenka777"]
[Result "1-0"]
[WhiteElo "1728"]
[BlackElo "1287"]
[TimeControl "180+1"]
[EndTime "10:21:19 PDT"]
[Termination "Uživatel masodj zvítězil matem"]

1. e4 {[%clk 0:03:00.9]} 1... e5 {[%clk 0:02:59.3]} 2. Nf3 {[%clk 0:03:00.2]}
2... Nc6 {[%clk 0:02:56.9]} 3. Bc4 {[%clk 0:02:59.6]} 3... Nf6 {[%clk 0:02:54]}
4. d3 {[%clk 0:02:56.9]} 4... Na5 {[%clk 0:02:51.7]} 5. Bb3 {[%clk 0:02:55.9]}
5... Nxb3 {[%clk 0:02:49.7]} 6. axb3 {[%clk 0:02:55.8]} 6... Bc5 {[%clk
0:02:49]} 7. O-O {[%clk 0:02:53.2]} 7... d6 {[%clk 0:02:46]} 8. Be3 {[%clk
0:02:50.9]} 8... Bg4 {[%clk 0:02:44]} 9. Bxc5 {[%clk 0:02:49.7]} 9... dxc5
{[%clk 0:02:43.2]} 10. Nbd2 {[%clk 0:02:50.1]} 10... O-O {[%clk 0:02:41.7]} 11.
h3 {[%clk 0:02:46.5]} 11... Bh5 {[%clk 0:02:40.5]} 12. Qe2 {[%clk 0:02:43.2]}
12... b5 {[%clk 0:02:36.3]} 13. Qe3 {[%clk 0:02:42.8]} 13... c4 {[%clk
0:02:23.3]} 14. bxc4 {[%clk 0:02:41.1]} 14... bxc4 {[%clk 0:02:22.6]} 15. Nxc4
{[%clk 0:02:41.1]} 15... a6 {[%clk 0:02:10.2]} 16. Ncxe5 {[%clk 0:02:36.9]}
16... Qd6 {[%clk 0:01:52.1]} 17. Nc4 {[%clk 0:02:31.7]} 17... Qb4 {[%clk
0:01:44.1]} 18. b3 {[%clk 0:02:29.4]} 18... Qc3 {[%clk 0:01:39.5]} 19. Qd2
{[%clk 0:02:24.1]} 19... Qxd2 {[%clk 0:01:36.6]} 20. Ncxd2 {[%clk 0:02:21.3]}
20... Bg6 {[%clk 0:01:34.6]} 21. Ne5 {[%clk 0:02:17.8]} 21... h6 {[%clk
0:01:34.1]} 22. Nxg6 {[%clk 0:02:17.4]} 22... fxg6 {[%clk 0:01:33.7]} 23. f4
{[%clk 0:02:16.3]} 23... g5 {[%clk 0:01:33.1]} 24. f5 {[%clk 0:02:13.3]} 24...
Nh5 {[%clk 0:01:31.8]} 25. Kh2 {[%clk 0:02:06.4]} 25... Nf4 {[%clk 0:01:31.6]}
26. g3 {[%clk 0:02:03.6]} 26... Ne2 {[%clk 0:01:30.8]} 27. Rf2 {[%clk
0:01:59.4]} 27... Nd4 {[%clk 0:01:30.5]} 28. c3 {[%clk 0:01:56.3]} 28... Nb5
{[%clk 0:01:29.7]} 29. Rc1 {[%clk 0:01:37]} 29... Rf6 {[%clk 0:01:26.2]} 30. e5
{[%clk 0:01:32.9]} 30... Rc6 {[%clk 0:01:22.8]} 31. c4 {[%clk 0:01:27.9]} 31...
Nd4 {[%clk 0:01:21.9]} 32. Nf3 {[%clk 0:01:25.4]} 32... Nxb3 {[%clk 0:01:19.8]}
33. Re1 {[%clk 0:01:10.4]} 33... Nc5 {[%clk 0:01:17.4]} 34. d4 {[%clk
0:01:03.4]} 34... Nd3 {[%clk 0:01:17]} 35. Rfe2 {[%clk 0:00:51.7]} 35... Nxe1
{[%clk 0:01:16.1]} 36. Rxe1 {[%clk 0:00:45.6]} 36... Rxc4 {[%clk 0:01:16.5]} 37.
e6 {[%clk 0:00:44.7]} 37... Rc2+ {[%clk 0:01:15.1]} 38. Kh1 {[%clk 0:00:42.6]}
38... Kf8 {[%clk 0:01:13.1]} 39. Ne5 {[%clk 0:00:38.1]} 39... Rb8 {[%clk
0:01:09.8]} 40. Nd7+ {[%clk 0:00:37]} 40... Ke7 {[%clk 0:01:08.4]} 41. Nxb8
{[%clk 0:00:36.8]} 41... Rb2 {[%clk 0:01:07.1]} 42. Nxa6 {[%clk 0:00:35.9]}
42... h5 {[%clk 0:01:05.5]} 43. Nc5 {[%clk 0:00:35.3]} 43... g4 {[%clk
0:01:05.7]} 44. hxg4 {[%clk 0:00:34.9]} 44... hxg4 {[%clk 0:01:06.1]} 45. Re4
{[%clk 0:00:34.1]} 45... c6 {[%clk 0:01:04.9]} 46. Rxg4 {[%clk 0:00:33.7]} 46...
Rb1+ {[%clk 0:01:00.1]} 47. Kg2 {[%clk 0:00:33.2]} 47... Rb2+ {[%clk 0:01:00]}
48. Kf3 {[%clk 0:00:33.2]} 48... Rd2 {[%clk 0:00:57.3]} 49. Rxg7+ {[%clk
0:00:31.5]} 49... Kd6 {[%clk 0:00:56.1]} 50. Ne4+ {[%clk 0:00:31]} 50... Kd5
{[%clk 0:00:53.6]} 51. Nxd2 {[%clk 0:00:30.5]} 51... Kxd4 {[%clk 0:00:54]} 52.
e7 {[%clk 0:00:30.3]} 52... c5 {[%clk 0:00:54.5]} 53. Nb3+ {[%clk 0:00:29.4]}
53... Kc4 {[%clk 0:00:53.5]} 54. Nxc5 {[%clk 0:00:29.3]} 54... Kxc5 {[%clk
0:00:53.4]} 55. e8=Q {[%clk 0:00:29.4]} 55... Kc4 {[%clk 0:00:53.1]} 56. Rd7
{[%clk 0:00:28.1]} 56... Kc5 {[%clk 0:00:51.6]} 57. Qc8+ {[%clk 0:00:27.9]}
57... Kb6 {[%clk 0:00:51.9]} 58. Rb7+ {[%clk 0:00:27.7]} 58... Ka6 {[%clk
0:00:52.3]} 59. Qa8# {[%clk 0:00:27.6]} 1-0